bitfinex/quotes_BTCUSD_20250314
["timestamp","ask_amount","ask_price","bid_price","bid_amount"]
[1741944864679,0.45146534,82917.0,82916.0,0.0080946]
[1741944864878,0.01206,82912.0,82911.0,0.0008]
[1741944865075,0.56781985,82912.0,82911.0,0.0008]
[1741944866345,0.56781985,82912.0,82911.0,0.0048]
[1741944867146,0.58673519,82912.0,82911.0,0.0048]
[1741944867526,0.33345619,82912.0,82911.0,0.0048]
[1741944867683,0.33345619,82912.0,82911.0,0.01291465]
[1741944867880,0.31891534,82912.0,82911.0,0.01291465]
[1741944869336,0.33097534,82912.0,82911.0,0.01291465]
[1741944869509,0.33097534,82912.0,82911.0,0.0048]
[1741944869859,0.33097534,82912.0,82911.0,0.0129121]
[1741944870161,0.33097534,82912.0,82911.0,0.005139]
[1741944870162,0.4405656,82912.0,82911.0,0.005139]
[1741944870359,0.33097534,82912.0,82911.0,0.005139]
[1741944870744,0.31891534,82912.0,82911.0,0.005139]
[1741944870955,0.31891534,82912.0,82911.0,0.340522]
[1741944871151,0.31891534,82912.0,82911.0,0.3486341]
[1741944871312,0.31891534,82912.0,82911.0,0.1074121]
[1741944871513,0.31891534,82912.0,82911.0,0.0953511]
[1741944874841,0.42972785,82912.0,82911.0,0.0953511]
[1741944875048,0.44178785,82912.0,82911.0,0.0953511]
[1741944875274,0.44178785,82912.0,82911.0,0.087239]
[1741944876667,0.03097534,82912.0,82911.0,0.005139]
[1741944879204,0.03097534,82912.0,82911.0,0.0132511]
[1741944879492,0.03097534,82912.0,82911.0,0.01325754]
[1741944879902,0.03097534,82912.0,82911.0,0.005139]
[1741944880081,0.18097534,82912.0,82911.0,0.005139]
[1741944880287,0.18569534,82912.0,82911.0,0.005139]
[1741944880432,0.17363534,82912.0,82911.0,0.0172]
[1741944881049,0.17363534,82912.0,82911.0,0.02531854]
[1741944881255,0.17363534,82912.0,82911.0,0.10291854]
[1741944881460,0.17363534,82912.0,82911.0,0.09085754]
[1741944881858,0.17363534,82912.0,82911.0,0.33207954]
[1741944882458,0.17363534,82912.0,82911.0,0.09085754]
[1741944883174,0.17363534,82912.0,82911.0,0.33207954]
[1741944883379,0.17363534,82912.0,82911.0,0.09085754]
[1741944883963,0.17363534,82912.0,82911.0,0.10291854]
[1741944884487,0.17363534,82912.0,82911.0,0.09085754]
[1741944886267,0.18569534,82912.0,82911.0,0.09085754]
[1741944886476,0.18569534,82912.0,82911.0,0.01325754]
[1741944886689,0.18569534,82912.0,82911.0,0.005139]
[1741944889780,0.18569534,82912.0,82911.0,0.01324995]
[1741944891340,0.17363534,82912.0,82911.0,0.01324995]
[1741944891555,0.17363534,82912.0,82911.0,0.26653295]
[1741944891880,0.17363534,82912.0,82911.0,0.01324995]
[1741944896693,0.10254024,82914.0,82911.0,0.01324995]
[1741944896876,0.0001693,82912.0,82911.0,0.01324995]
[1741944897070,0.01908345,82912.0,82911.0,0.01324995]
[1741944897412,0.0001693,82912.0,82911.0,0.01324995]
[1741944897615,0.0001693,82912.0,82911.0,0.01124995]
[1741944897983,0.0001693,82912.0,82911.0,0.01324995]
[1741944899365,0.0001693,82912.0,82911.0,0.01124995]
[1741944899658,0.0001693,82912.0,82911.0,0.01324995]
[1741944899806,0.0001693,82912.0,82911.0,0.02531095]
[1741944899991,0.01908371,82912.0,82911.0,0.02531095]
[1741944900992,0.01908371,82912.0,82911.0,0.24241095]
[1741944901671,0.01908371,82912.0,82911.0,0.29131095]
[1741944902715,0.01908371,82912.0,82911.0,0.28931095]
[1741944903054,0.01908371,82912.0,82911.0,0.29131095]
[1741944903262,0.01908371,82912.0,82911.0,0.28931095]
[1741944903481,0.01908371,82912.0,82911.0,0.28731095]
[1741944903684,0.01908371,82912.0,82911.0,0.28931095]
[1741944903887,0.01908371,82912.0,82911.0,0.29131095]
[1741944904340,0.01908371,82912.0,82911.0,0.29431095]
[1741944912206,0.01908371,82912.0,82911.0,0.28731095]
[1741944912568,0.01908371,82912.0,82911.0,0.29679095]
[1741944912780,0.01908371,82912.0,82911.0,0.16051095]
[1741944912929,0.01908371,82912.0,82911.0,0.29275095]
[1741944913348,0.01908371,82912.0,82911.0,0.29775095]
[1741944915348,0.01908371,82912.0,82911.0,0.29767095]
[1741944922926,0.01908371,82912.0,82911.0,0.16151095]
[1741944923128,3.6e-07,82917.0,82916.0,0.253267]
[1741944923339,3.6e-07,82917.0,82916.0,0.38981076]
[1741944923791,3.6e-07,82917.0,82916.0,1.88981076]
[1741944924317,3.6e-07,82917.0,82916.0,0.38981076]
[1741944924837,3.6e-07,82917.0,82916.0,0.39581076]
[1741944925415,0.0001694,82952.0,82951.0,0.253161]
[1741944925615,0.0001694,82952.0,82951.0,0.331961]
[1741944926419,0.241031,82977.0,82970.0,0.241048]
[1741944926622,0.3,82976.0,82971.0,0.253097]
[1741944926828,0.3,82976.0,82973.0,0.24104]
[1741944926984,0.01454085,82977.0,82973.0,0.24104]
[1741944927191,0.241033,82976.0,82970.0,0.01209293]
[1741944927411,0.253094,82973.0,82970.0,4.093e-05]
[1741944927626,0.24949295,82977.0,82970.0,4.093e-05]
[1741944927853,0.01890343,82973.0,82970.0,4.093e-05]
[1741944929078,0.241039,82975.0,82970.0,4.093e-05]
[1741944929274,0.012051,82974.0,82970.0,4.093e-05]
[1741944929486,0.241027,82978.0,82970.0,0.24108893]
[1741944929678,0.253078,82978.0,82970.0,4.093e-05]
[1741944929903,0.253087,82976.0,82970.0,4.093e-05]
[1741944930110,0.012052,82971.0,82970.0,4.093e-05]
[1741944930262,0.241047,82972.0,82970.0,4.093e-05]
[1741944930752,0.25995014,82972.0,82970.0,4.093e-05]
[1741944931546,0.01890314,82972.0,82970.0,4.093e-05]
[1741944931724,0.01890314,82972.0,82970.0,0.24109093]
[1741944932252,0.01890314,82972.0,82971.0,0.00739265]
[1741944933033,0.01890314,82972.0,82971.0,0.01944465]
[1741944933637,0.01890314,82972.0,82971.0,0.09554465]
[1741944933844,0.01890314,82972.0,82971.0,0.09654465]
[1741944934900,0.01890314,82972.0,82971.0,0.08449265]
[1741944936377,0.01890314,82972.0,82971.0,0.32554065]
[1741944936613,0.01890314,82972.0,82971.0,0.33759265]
[1741944939890,0.01890314,82972.0,82971.0,0.08449265]
[1741944940091,0.01890314,82972.0,82971.0,0.09654465]
[1741944940869,0.01890314,82972.0,82971.0,0.08449265]
[1741944941077,0.63906453,82972.0,82971.0,0.00839265]
[1741944941502,0.62016139,82972.0,82971.0,0.001]
[1741944942088,0.553097,82972.0,82971.0,0.001]
[1741944942514,0.0001693,82974.0,82970.0,4.093e-05]
[1741944942685,0.012052,82973.0,82970.0,4.093e-05]
[1741944942867,0.2412103,82974.0,82971.0,0.00790818]
[1741944943090,0.0001693,82974.0,82971.0,0.00790818]
[1741944943292,0.0001693,82974.0,82973.0,0.253094]
[1741944943488,0.0001693,82974.0,82973.0,0.329294]
[1741944943809,0.0001693,82974.0,82973.0,0.00790558]
[1741944944154,0.0001693,82974.0,82970.0,0.01209293]
[1741944944329,0.04158136,82974.0,82973.0,0.00790427]
[1741944944539,0.04158136,82974.0,82970.0,0.00037913]
[1741944944739,0.04158136,82974.0,82973.0,0.00790427]
[1741944944933,0.04158136,82974.0,82970.0,0.00037913]
[1741944945377,0.04158136,82974.0,82971.0,0.00790687]
[1741944945588,0.02250957,82973.0,82971.0,0.00790687]
[1741944946565,0.02250957,82973.0,82971.0,0.26100487]
[1741944946774,0.02250957,82972.0,82971.0,0.26100487]
[1741944947302,0.03376978,82972.0,82971.0,0.26100487]
[1741944948243,0.03376978,82972.0,82971.0,0.00790687]
[1741944948473,0.02250957,82972.0,82970.0,0.00037913]
[1741944948689,0.02250957,82972.0,82971.0,0.00890322]
[1741944949058,0.01907179,82974.0,82971.0,0.00790322]
[1741944949385,0.00248,82972.0,82971.0,0.00890322]
[1741944950045,0.00248,82972.0,82971.0,0.00790322]
[1741944950242,0.02502534,82972.0,82971.0,0.00790322]
[1741944950565,0.02502534,82972.0,82971.0,0.01995522]
[1741944950973,0.02502534,82972.0,82971.0,0.00790322]
[1741944951738,0.00248,82972.0,82971.0,0.00790322]
[1741944952847,0.00248,82972.0,82971.0,0.00890322]
[1741944954879,0.00248,82972.0,82971.0,0.38410322]
[1741944955838,0.00248,82972.0,82971.0,0.38310322]
[1741944956094,0.00248,82972.0,82971.0,0.38710322]
[1741944956472,0.00248,82972.0,82971.0,0.38744142]
[1741944956682,0.00248,82972.0,82971.0,0.39044142]
[1741944960101,3e-07,82974.0,82973.0,0.381394]
[1741944960636,3e-07,82974.0,82973.0,0.38928247]
[1741944961401,3e-07,82974.0,82973.0,0.39528247]
[1741944961846,3e-07,82974.0,82973.0,0.69528247]
[1741944962589,3e-07,82974.0,82973.0,0.70128247]
[1741944968157,3e-07,82974.0,82973.0,0.70162067]
[1741944969563,3e-07,82974.0,82973.0,0.68962067]
[1741944969761,3e-07,82974.0,82973.0,0.70916152]
[1741944969969,4e-07,82979.0,82978.0,0.382878]
[1741944970164,4e-07,82979.0,82978.0,1.148198]
[1741944970363,4e-07,82979.0,82978.0,1.15604186]
[1741944970796,4e-07,82979.0,82978.0,1.17960648]
[1741944971832,4e-07,82979.0,82978.0,1.31528648]
[1741944972329,4e-07,82979.0,82978.0,1.32128648]
[1741944973196,4e-07,82979.0,82978.0,1.32728648]
[1741944975245,4e-07,82979.0,82978.0,1.74468648]
[1741944975771,4e-07,82979.0,82978.0,1.75922733]
[1741944976378,4e-07,82979.0,82978.0,2.05922733]
[1741944977526,4e-07,82979.0,82978.0,2.04722733]
[1741944977795,4e-07,82979.0,82978.0,2.05922733]
[1741944978209,4e-07,82979.0,82978.0,3.55922733]
[1741944978999,4e-07,82979.0,82978.0,3.60922733]
[1741944979177,1e-07,82996.0,82995.0,0.139648]
[1741944979379,1e-07,82996.0,82995.0,0.28434479]
[1741944979621,1e-07,82996.0,82995.0,0.28314031]
[1741944980411,1e-07,82996.0,82995.0,0.28918124]
[1741944980799,1e-07,82996.0,82995.0,0.3136217]
[1741944981009,1e-07,82996.0,82995.0,0.3186217]
[1741944981855,1e-07,82996.0,82995.0,0.3246217]
[1741944984063,1e-07,82996.0,82995.0,0.1889417]
[1741944984262,1e-07,82996.0,82995.0,0.3257863]
[1741944984468,1e-07,82996.0,82995.0,0.3245817]
[1741944986046,0.0754,83024.0,83023.0,0.012044]
[1741944986244,0.0754,83024.0,83023.0,0.252941]
[1741944986419,0.0754,83024.0,83023.0,0.00777597]
[1741944986654,0.0754,83024.0,83020.0,0.012045]
[1741944986822,0.0754,83024.0,83023.0,0.00777597]
[1741944987003,0.0754,83024.0,83018.0,0.240909]
[1741944987004,0.316296,83024.0,83018.0,0.240909]
[1741944987214,0.087444,83024.0,83020.0,0.240905]
[1741944987554,0.10261277,83024.0,83021.0,0.00777856]
[1741944987804,0.252945,83022.0,83021.0,0.00777856]
[1741944987977,0.632545,83022.0,83021.0,0.00777856]
[1741944988226,0.240925,83014.0,83008.0,0.012047]
[1741944988632,0.240925,83014.0,83009.0,0.24872814]
[1741944988864,0.240925,83014.0,83009.0,0.26077414]
[1741944989193,0.012046,83015.0,83010.0,0.240932]
[1741944989363,0.0188924,83013.0,83010.0,0.252978]
[1741944989513,0.0188924,83013.0,83011.0,0.00908437]
[1741944990096,0.0188924,83013.0,83011.0,0.26205937]
[1741944990295,0.0188924,83013.0,83012.0,0.012046]
[1741944990431,0.0188924,83013.0,83012.0,0.02112885]
[1741944991209,0.01825379,83013.0,83012.0,0.00908285]
[1741944991707,0.01825379,83013.0,83012.0,0.01108285]
[1741944992710,0.01825379,83013.0,83012.0,0.02312885]
[1741944993612,0.01825379,83013.0,83012.0,0.02412885]
[1741944995099,0.01825379,83013.0,83012.0,0.01208285]
[1741944995435,0.07187647,83013.0,83012.0,0.25301185]
[1741944995653,0.01825379,83013.0,83012.0,0.01208285]
[1741944995859,0.27122579,83013.0,83012.0,0.003]
[1741944996291,0.34842579,83013.0,83012.0,0.003]
[1741944996496,0.39772579,83013.0,83012.0,0.003]
[1741944996736,0.39772579,83013.0,83012.0,0.002]
[1741944996937,0.14475379,83013.0,83012.0,0.0077853]
[1741944997245,0.14475379,83013.0,83005.0,0.240947]
[1741944997422,0.14475379,83013.0,83012.0,0.01008285]
[1741944997423,0.39772779,83013.0,83012.0,0.01008285]
[1741944997615,0.39772779,83013.0,83012.0,0.001]
[1741944998025,0.14475379,83013.0,83012.0,0.0087853]
[1741944998222,0.15679979,83013.0,83012.0,0.001]
[1741944998424,0.012047,83004.0,82997.0,0.240972]
[1741944998770,0.240952,83004.0,83000.0,0.240963]
[1741944999305,0.240952,83004.0,83001.0,0.00780136]
[1741944999505,0.240948,83006.0,83001.0,0.00780136]
[1741944999657,0.012047,83008.0,83001.0,0.26080736]
[1741944999862,0.252989,83008.0,83003.0,0.240954]
[1741945000250,0.252989,83008.0,83004.0,0.00780297]
[1741945000626,0.252955,83019.0,83013.0,0.240924]
[1741945000831,0.252955,83019.0,83010.0,0.012046]
[1741945000832,0.552958,83018.0,83014.0,0.00778999]
[1741945001059,0.552958,83018.0,83012.0,0.012046]
[1741945001264,0.312045,83016.0,83015.0,0.00908681]
[1741945001461,0.240929,83012.0,83007.0,0.240941]
[1741945001842,0.240929,83012.0,83004.0,0.002]
[1741945001843,0.252977,83012.0,83008.0,0.240937]
[1741945002026,0.012046,83012.0,83006.0,0.252993]
[1741945002230,0.552964,83016.0,83008.0,0.005203]
[1741945002374,0.552964,83016.0,83010.0,0.240932]
[1741945002583,0.240932,83011.0,83006.0,0.252993]
[1741945002776,0.012046,83010.0,83004.0,0.24495]
[1741945002974,0.252978,83011.0,83006.0,0.252991]
[1741945003178,0.252971,83014.0,83009.0,0.240935]
[1741945003383,0.252974,83013.0,83008.0,0.012047]
[1741945003583,0.01889542,83010.0,83007.0,0.252988]
[1741945003939,0.01889542,83010.0,83008.0,0.24094]
[1741945004102,0.01889542,83010.0,83008.0,0.252987]
[1741945004558,0.012046,83009.0,83004.0,0.243949]
[1741945004748,0.01889542,83010.0,83008.0,0.252984]
[1741945005077,0.01889542,83010.0,83009.0,0.012046]
[1741945006671,0.01889542,83010.0,83009.0,0.013046]
[1741945007448,0.01889542,83010.0,83009.0,0.014046]
[1741945007626,0.01889542,83010.0,83009.0,0.016046]
[1741945008405,0.0001691,83013.0,83010.0,0.240934]
[1741945008657,0.0001691,83013.0,83012.0,0.252975]
[1741945009234,0.0001691,83013.0,83012.0,0.26863496]
[1741945009797,0.0001691,83013.0,83012.0,0.26963496]
[1741945010405,0.252956,83019.0,83014.0,0.240922]
[1741945010807,0.252956,83019.0,83015.0,0.01565088]
[1741945011003,0.240913,83018.0,83015.0,0.01565088]
[1741945011206,0.252958,83018.0,83015.0,0.01565088]
[1741945011619,0.252958,83018.0,83013.0,0.012046]
[1741945011798,0.252958,83018.0,83013.0,0.25297]
[1741945012056,0.252958,83018.0,83014.0,0.0156539]
[1741945012946,0.240916,83017.0,83014.0,0.0156539]
[1741945015666,0.29393661,83016.0,83014.0,0.0156539]
[1741945016015,0.29393661,83016.0,83012.0,0.012046]
[1741945016226,0.30598161,83016.0,83015.0,0.01564637]
[1741945016371,0.30598161,83016.0,83011.0,0.24093]
[1741945016578,0.30598161,83016.0,83015.0,0.01564637]
[1741945016784,0.30598161,83016.0,83010.0,0.25298]
[1741945016785,0.252964,83016.0,83010.0,0.25298]
[1741945016993,0.252964,83016.0,83015.0,0.01564637]
[1741945017194,0.252964,83016.0,83010.0,0.25298]
[1741945017394,0.252964,83016.0,83015.0,0.01564637]
[1741945017659,0.012046,83014.0,83009.0,0.0123842]
[1741945017859,0.240927,83013.0,83009.0,0.0123842]
[1741945018151,0.240934,83010.0,83009.0,0.0003382]
[1741945018479,0.25298,83010.0,83009.0,0.0003382]
[1741945018704,0.332557,83010.0,83009.0,0.0003382]
[1741945018963,0.35517959,83010.0,83009.0,0.0003382]
[1741945019163,0.27808259,83010.0,83009.0,0.0003382]
[1741945019363,0.27808259,83010.0,83009.0,0.0013382]
[1741945019758,0.29697811,83010.0,83009.0,0.0013382]
[1741945020341,0.05530924,83010.0,83009.0,0.0013382]
[1741945020788,0.05530924,83010.0,83009.0,0.0133842]
[1741945021080,0.05530924,83010.0,83009.0,0.0153842]
[1741945021460,0.06735524,83010.0,83009.0,0.0033382]
[1741945021663,0.05530924,83010.0,83009.0,0.0033382]
[1741945021866,0.06735524,83010.0,83009.0,0.0033382]
[1741945023683,0.05530924,83010.0,83009.0,0.01900661]
[1741945024261,0.04473265,83010.0,83009.0,0.01900661]
[1741945024651,0.04473265,83010.0,83009.0,0.0033382]
[1741945025238,0.03268665,83010.0,83009.0,0.0033382]
[1741945025618,0.02137552,83010.0,83009.0,0.0033382]
[1741945026416,0.02137552,83010.0,83009.0,0.01901279]
[1741945026617,0.02137552,83010.0,83009.0,0.0033382]
[1741945026786,0.02137552,83010.0,83009.0,0.01901279]
[1741945027024,0.02137552,83010.0,83009.0,0.0033382]
[1741945027238,0.26230952,83010.0,83009.0,0.0033382]
[1741945027449,0.35485552,83010.0,83009.0,0.0033382]
[1741945027652,0.68316,83010.0,83009.0,0.0033382]
[1741945027853,0.69770085,83010.0,83009.0,0.0033382]
[1741945028357,0.69770085,83010.0,82980.0,0.0489]
[1741945028577,0.69744585,83002.0,83001.0,2e-07]
[1741945028749,0.81740674,83002.0,83001.0,2e-07]
[1741945029987,0.69744585,83002.0,83001.0,2e-07]
[1741945030319,0.682905,83002.0,83001.0,2e-07]
[1741945031941,0.83744413,83002.0,83001.0,2e-07]
[1741945032161,0.85198498,83002.0,83001.0,2e-07]
[1741945034106,0.83308585,83002.0,83001.0,2e-07]
[1741945034314,0.95304674,83002.0,83001.0,2e-07]
[1741945039213,0.95604674,83002.0,83001.0,2e-07]
[1741945041564,0.72512504,83002.0,83001.0,2e-07]
[1741945042301,0.71058419,83002.0,83001.0,2e-07]
[1741945042904,0.691685,83002.0,83001.0,2e-07]
[1741945043250,0.81164589,83002.0,83001.0,2e-07]
[1741945045229,0.691685,83002.0,83001.0,2e-07]
[1741945046413,0.690685,83002.0,83001.0,2e-07]
[1741945046613,0.693685,83002.0,83001.0,2e-07]
[1741945051434,0.6938543,83002.0,83001.0,2e-07]
[1741945052433,0.253038,82991.0,82990.0,0.06000214]
[1741945053716,0.2729364,82991.0,82990.0,0.06004307]
[1741945054477,0.2739364,82991.0,82990.0,0.06004307]
[1741945057110,0.0208984,82991.0,82990.0,0.36138407]
[1741945057344,0.002,82991.0,82990.0,0.10834307]
[1741945057549,0.002,82991.0,82990.0,0.12219879]
[1741945057744,0.0672653,82991.0,82990.0,0.12219879]
[1741945057974,0.0652653,82991.0,82990.0,0.12219879]
[1741945058173,0.0652653,82991.0,82990.0,0.10934307]
[1741945058570,0.0652653,82991.0,82990.0,0.10834307]
[1741945059079,0.0652653,82991.0,82990.0,0.10934307]
[1741945060020,0.0652653,82991.0,82990.0,0.11034307]
[1741945060212,0.08416281,82991.0,82990.0,0.11034307]
[1741945061999,0.09547328,82991.0,82990.0,0.11034307]
[1741945062660,0.09547328,82991.0,82990.0,0.11068167]
[1741945062863,0.03020798,82991.0,82990.0,0.12452508]
[1741945063036,0.01889751,82991.0,82990.0,0.13657408]
[1741945063996,0.01889751,82991.0,82990.0,0.12452508]
[1741945064658,0.03094651,82991.0,82990.0,0.12452508]
[1741945065589,0.04225516,82991.0,82990.0,0.11068167]
[1741945065765,0.07207006,82991.0,82990.0,0.11068167]
[1741945068459,0.03020616,82991.0,82990.0,0.11068167]
[1741945068679,0.03020616,82991.0,82990.0,0.12452508]
[1741945068802,0.04225516,82991.0,82990.0,0.12452508]
[1741945069010,0.240989,82991.0,82990.0,0.12452508]
[1741945069629,0.253038,82991.0,82990.0,0.12452508]
[1741945070086,0.012049,82992.0,82990.0,0.12452508]
[1741945070748,0.253032,82994.0,82990.0,0.12452508]
[1741945070935,0.00926452,82998.0,82990.0,0.12452508]
[1741945071193,0.3,83006.0,82996.0,0.240972]
[1741945071385,0.3,83003.0,82998.0,0.253015]
[1741945071670,0.253017,82999.0,82997.0,0.0953222]
[1741945071832,0.240988,82992.0,82990.0,0.13217953]
[1741945072011,0.253017,82998.0,82990.0,0.14422853]
[1741945072197,0.253026,82996.0,82991.0,0.012049]
[1741945072443,0.01889735,82994.0,82991.0,0.012049]
[1741945072660,0.01889735,82994.0,82990.0,0.14422853]
[1741945073096,0.01889735,82994.0,82990.0,0.14322853]
[1741945073314,0.01889735,82994.0,82990.0,0.14222853]
[1741945073731,0.25988035,82994.0,82990.0,0.14222853]
[1741945074325,0.25988035,82994.0,82990.0,0.13017953]
[1741945074527,0.27192935,82994.0,82990.0,0.13017953]
[1741945075350,0.03094635,82994.0,82990.0,0.37117053]
[1741945075554,0.01889735,82994.0,82991.0,0.240989]
[1741945076176,0.01889735,82994.0,82990.0,0.13017953]
[1741945076364,0.01889735,82994.0,82990.0,0.37117053]
[1741945076567,0.01889735,82994.0,82990.0,0.13017953]
[1741945077293,0.253038,82992.0,82990.0,0.13017953]
[1741945077715,0.253033,82993.0,82990.0,0.13017953]
[1741945077927,0.01889735,82994.0,82990.0,0.13017953]
[1741945077928,0.01889735,82994.0,82993.0,0.253033]
[1741945078602,0.01889735,82994.0,82991.0,0.240989]
[1741945079066,0.01889735,82994.0,82990.0,0.14322853]
[1741945079402,0.01889735,82994.0,82990.0,0.14422853]
[1741945080021,0.01889735,82994.0,82990.0,0.14322853]
[1741945080239,0.01889735,82994.0,82991.0,0.240989]
[1741945080436,0.01889735,82994.0,82993.0,0.001]
[1741945080865,0.01889735,82994.0,82990.0,0.14322853]
[1741945080866,0.25988035,82994.0,82990.0,0.14322853]
[1741945081158,0.25988035,82994.0,82990.0,0.14422853]
[1741945081378,0.25988035,82994.0,82990.0,0.13217953]
[1741945081579,0.240985,82993.0,82990.0,0.13117953]
[1741945082180,0.240985,82993.0,82990.0,0.13017953]
[1741945082343,0.27192935,82994.0,82990.0,0.13017953]
[1741945082543,0.27192935,82994.0,82991.0,0.001]
[1741945083037,0.27192935,82994.0,82990.0,0.13017953]
[1741945083212,0.01889735,82994.0,82990.0,0.38321953]
[1741945083412,0.01889735,82994.0,82990.0,0.38421953]
[1741945083615,0.25988035,82994.0,82990.0,0.13117953]
[1741945083829,0.27192935,82994.0,82991.0,0.01383698]
[1741945084156,0.240985,82993.0,82991.0,0.01483698]
[1741945084358,0.27192935,82994.0,82991.0,0.01483698]
[1741945085123,0.27192935,82994.0,82991.0,0.01583698]
[1741945085615,0.01889735,82994.0,82991.0,0.25682398]
[1741945085810,0.01889735,82994.0,82993.0,0.088549]
[1741945086016,0.0001693,83002.0,82993.0,0.08975376]
[1741945086219,0.0001693,83002.0,83001.0,0.378208]
[1741945086432,0.0001693,83002.0,83001.0,0.513848]
[1741945086623,0.0001693,83002.0,83001.0,0.5276468]
[1741945090763,0.0001693,83002.0,83001.0,0.5296468]
[1741945091826,0.0001693,83002.0,83001.0,0.5316468]
[1741945093559,0.0001693,83002.0,83001.0,0.8316468]
[1741945094597,0.0001693,83002.0,83001.0,0.8276468]
[1741945095025,0.0001693,83002.0,83001.0,0.8316468]
[1741945095899,0.0001693,83002.0,83001.0,0.8336468]
[1741945096462,0.0001693,83002.0,83001.0,0.8316468]
[1741945096839,0.0001693,83002.0,83001.0,0.8356468]
[1741945099405,0.0001693,83002.0,83001.0,0.4000068]
[1741945099607,0.0001693,83002.0,83001.0,0.5356068]
[1741945102484,0.01144412,83002.0,83001.0,0.5356068]
[1741945102945,0.01144412,83002.0,83001.0,0.4000068]
[1741945103158,0.01144412,83002.0,83001.0,0.5355668]
[1741945104786,0.0001693,83002.0,83001.0,0.5355668]
[1741945107258,0.01144645,83002.0,83001.0,0.4000068]
[1741945107460,0.01144645,83002.0,83001.0,0.5355668]
[1741945108418,0.252963,83016.0,83011.0,0.24093]
[1741945108857,0.252963,83016.0,83012.0,0.01148554]
[1741945110157,0.2531323,83016.0,83012.0,0.01148554]
[1741945110975,0.02256738,83015.0,83012.0,0.01148554]
[1741945111581,0.02256738,83015.0,83010.0,0.252978]
[1741945111898,0.02256738,83015.0,83007.0,0.012047]
[1741945112197,0.26349138,83014.0,83009.0,0.012046]
[1741945112408,0.26349138,83014.0,83010.0,0.240933]
[1741945112619,0.02256738,83014.0,83010.0,0.252979]
[1741945112965,0.0001693,83016.0,83015.0,0.012046]
[1741945113211,0.0001693,83016.0,83013.0,0.012046]
[1741945113586,0.0001693,83016.0,83014.0,0.01147949]
[1741945114266,0.02258533,83015.0,83014.0,0.01147949]
[1741945114980,0.02258533,83015.0,83012.0,0.252973]
[1741945115185,0.02258533,83015.0,83014.0,0.01147886]
[1741945115542,0.02258533,83015.0,83012.0,0.012046]
[1741945115749,0.02258533,83015.0,83013.0,0.01148188]
[1741945116492,0.03463133,83015.0,83013.0,0.01148188]
[1741945116699,0.02258533,83014.0,83013.0,0.01148188]
[1741945116895,0.02258533,83014.0,83010.0,0.252979]
[1741945117136,0.02258533,83014.0,83013.0,0.01148186]
[1741945117312,0.02258533,83014.0,83010.0,0.252979]
[1741945117539,0.02258533,83014.0,83013.0,0.01148186]
[1741945117742,0.02258533,83014.0,83012.0,0.252973]
[1741945117917,0.0005789,83016.0,83013.0,0.02352786]
[1741945118156,0.0005789,83016.0,83015.0,0.252966]
[1741945118709,0.0005789,83016.0,83015.0,0.2644418]
[1741945119218,0.02319617,83016.0,83015.0,0.2644418]
[1741945121054,0.03450743,83016.0,83015.0,0.2644418]
[1741945121433,0.03450743,83016.0,83015.0,0.0114758]
[1741945121719,0.03450743,83016.0,83015.0,0.2523958]
[1741945122067,0.03450743,83016.0,83015.0,0.2644418]
[1741945124092,0.03450743,83016.0,83015.0,0.3111418]
[1741945125741,0.03450743,83016.0,83015.0,0.3121418]
[1741945126311,0.03450743,83016.0,83015.0,0.3141418]
[1741945127994,0.03450743,83016.0,83015.0,0.0611758]
[1741945128633,0.03450743,83016.0,83015.0,0.0732218]
[1741945128835,0.06249969,83020.0,83015.0,0.3141398]
[1741945129036,0.0001691,83022.0,83016.0,0.240915]
[1741945129190,0.0001691,83022.0,83019.0,0.240908]
[1741945129599,0.2410711,83022.0,83020.0,0.01144934]
[1741945129771,0.2410711,83022.0,83017.0,0.240914]
[1741945129971,0.0001691,83022.0,83021.0,0.01144631]
[1741945130177,0.0001691,83022.0,83020.0,0.25295]
[1741945130382,0.0001691,83022.0,83021.0,0.01144631]
[1741945131014,0.0001691,83022.0,83018.0,0.240911]
[1741945131249,0.0001691,83022.0,83021.0,0.01144631]
[1741945131452,0.0001691,83022.0,83018.0,0.240911]
[1741945131600,0.0001691,83022.0,83021.0,0.01144631]
[1741945131804,0.0001691,83022.0,83019.0,0.012045]
[1741945132132,0.0001691,83022.0,83021.0,0.01144631]
[1741945132331,0.0001691,83022.0,83020.0,0.01144934]
[1741945132531,0.2410691,83022.0,83021.0,0.01144631]
[1741945132898,0.2410691,83022.0,83016.0,0.252962]
[1741945133166,0.2410691,83022.0,83021.0,0.01144631]
[1741945133342,0.2410691,83022.0,83017.0,0.240912]
[1741945133549,0.2410691,83022.0,83017.0,0.25237042]
[1741945133751,0.2410691,83022.0,83018.0,0.240908]
[1741945133752,0.0001691,83022.0,83018.0,0.240908]
[1741945133951,0.0001691,83022.0,83019.0,0.01145237]
[1741945135588,0.012044,83024.0,83019.0,0.01145237]
[1741945136243,0.012044,83023.0,83019.0,0.01145237]
[1741945137280,0.012044,83023.0,83016.0,0.012045]
[1741945137804,0.012044,83023.0,83017.0,0.01146135]
[1741945138007,0.252945,83022.0,83017.0,0.01146135]
[1741945138467,0.24091,83019.0,83017.0,0.01146135]
[1741945138670,0.012045,83020.0,83015.0,0.04707953]
[1741945138878,0.252951,83020.0,83018.0,0.01145832]
[1741945139085,0.252951,83020.0,83015.0,0.04707953]
[1741945139285,0.252951,83020.0,83019.0,0.01145529]
[1741945139510,0.24091,83019.0,83015.0,0.04707953]
[1741945139937,0.012044,83023.0,83017.0,0.240914]
[1741945140126,0.012045,83021.0,83016.0,0.012045]
[1741945141012,0.06647338,83021.0,83016.0,0.012045]
[1741945141310,0.252949,83021.0,83016.0,0.252962]
[1741945141513,0.252949,83021.0,83015.0,0.05912553]
[1741945141514,0.012045,83016.0,83015.0,0.00037953]
[1741945141719,0.252962,83016.0,83015.0,0.00037953]
[1741945142534,0.26427682,83016.0,83015.0,0.00037953]
[1741945142946,0.26427682,83016.0,83015.0,0.00137953]
[1741945143180,0.26427682,83016.0,83015.0,0.00337953]
[1741945143378,0.252962,83016.0,83015.0,0.00337953]
[1741945143581,0.26427708,83016.0,83015.0,0.00337953]
[1741945144862,0.252962,83016.0,83015.0,0.00337953]
[1741945145065,0.252962,83016.0,83015.0,0.01485382]
[1741945147422,0.30371353,83016.0,83015.0,0.01485382]
[1741945147635,0.252962,83016.0,83015.0,0.00337953]
[1741945148003,0.34437166,83016.0,83015.0,0.00337953]
[1741945148639,0.34437166,83016.0,83015.0,0.00237953]
[1741945148846,0.34437166,83016.0,83015.0,0.00037953]
[1741945149252,0.64437166,83016.0,83015.0,0.00037953]
[1741945149657,0.12639543,83010.0,83006.0,0.252992]
[1741945149900,0.3,83015.0,83008.0,0.252984]